bitfinex/quotes_SOLUSD_20220216
["timestamp","ask_amount","ask_price","bid_price","bid_amount"]
[1645036910652,1.42617469,99.5,99.412,2.30545512]
[1645036910853,15.0842,99.49,99.412,2.30545512]
[1645036912455,100.9,99.489,99.412,2.30545512]
[1645036912655,100.9,99.479,99.403,48.193]
[1645036913056,14.53,99.51,99.403,48.193]
[1645036913057,1.42617469,99.487,99.403,48.193]
[1645036913255,14.53,99.51,99.403,48.193]
[1645036913256,1.42617469,99.488,99.403,48.193]
[1645036913559,1.42617469,99.488,99.404,2.30545512]
[1645036913755,1.42617469,99.491,99.404,2.30545512]
[1645036913956,15.0869,99.47,99.404,2.30545512]
[1645036916382,15.0854,99.48,99.404,2.30545512]
[1645036916583,1.42617469,99.496,99.404,2.30545512]
[1645036916784,100.9,99.499,99.404,2.30545512]
[1645036916982,1.42617469,99.498,99.404,2.30545512]
[1645036917982,15.0841,99.49,99.41,15.0833]
[1645036918383,15.0841,99.49,99.411,2.30545512]
[1645036920885,1.42617469,99.503,99.411,2.30545512]
[1645036920886,1.42617469,99.503,99.421,100.9]
[1645036921086,15.082,99.51,99.422,24.3551]
[1645036921290,15.082,99.51,99.422,26.66694825]
[1645036921688,15.082,99.51,99.423,2.31184825]
[1645036922189,15.082,99.51,99.423,103.21184825]
[1645036922392,1.42617469,99.522,99.431,100.9]
[1645036922691,1.42617469,99.526,99.431,100.9]
[1645036922889,1.42617469,99.527,99.432,2.31184825]
[1645036923089,1.42617469,99.529,99.432,2.31184825]
[1645036923291,1.42617469,99.528,99.432,2.31184825]
[1645036923490,1.42617469,99.528,99.451,100.9]
[1645036923689,15.0777,99.54,99.432,2.31184825]
[1645036923690,1.42617469,99.535,99.452,22.6489]
[1645036923891,1.42617469,99.535,99.452,24.96074825]
[1645036924190,1.42617469,99.535,99.453,2.31184825]
[1645036924890,1.42617469,99.535,99.46,15.0759]
[1645036925290,1.42617469,99.536,99.461,2.31184825]
[1645036926590,1.42617469,99.537,99.461,2.31184825]
[1645036926990,1.42617469,99.538,99.461,2.31184825]
[1645036927691,1.42617469,99.539,99.461,2.31184825]
[1645036927893,15.078,99.53,99.454,23.1545]
[1645036928094,15.078,99.53,99.452,22.6489]
[1645036928298,1.42617469,99.525,99.452,22.6489]
[1645036928495,1.42617469,99.523,99.452,22.6489]
[1645036928692,1.42617469,99.526,99.452,22.6489]
[1645036929094,1.42617469,99.527,99.452,22.6489]
[1645036929493,1.42617469,99.525,99.452,22.6489]
[1645036929897,1.42617469,99.524,99.452,22.6489]
[1645036930097,19.13312034,99.524,99.452,22.6489]
[1645036930498,19.13312034,99.523,99.452,22.6489]
[1645036930897,17.70694565,99.522,99.452,22.6489]
[1645036931999,17.70694565,99.523,99.452,22.6489]
[1645036932398,19.13312034,99.523,99.452,22.6489]
[1645036932801,1.42617469,99.526,99.452,24.96074825]
[1645036933000,16.50417469,99.53,99.452,24.96074825]
[1645036933200,15.078,99.53,99.452,24.96074825]
[1645036933500,16.50417469,99.53,99.452,24.96074825]
[1645036933701,17.70805739,99.529,99.452,24.96074825]
[1645036934523,1.42617469,99.536,99.452,24.96074825]
[1645036934704,1.42617469,99.537,99.452,24.96074825]
[1645036935003,17.70750561,99.535,99.452,24.96074825]
[1645036935503,17.70750561,99.536,99.452,24.96074825]
[1645036935704,17.70750561,99.534,99.452,24.96074825]
[1645036935904,17.70750561,99.534,99.46,15.0759]
[1645036936106,17.70750561,99.536,99.46,15.0759]
[1645036936305,17.70750561,99.536,99.461,2.31184825]
[1645036936506,17.70750561,99.538,99.461,2.31184825]
[1645036937009,17.70750561,99.539,99.461,2.31184825]
[1645036938907,15.0781,99.53,99.453,23.4804]
[1645036941407,1.42617469,99.54,99.454,2.30605016]
[1645036941607,1.42617469,99.543,99.454,2.30605016]
[1645036941810,17.70267952,99.539,99.454,2.30605016]
[1645036942039,17.70267952,99.539,99.453,23.4804]
[1645036942244,1.42617469,99.535,99.453,23.4804]
[1645036942445,1.42617469,99.536,99.453,23.4804]
[1645036942642,1.42617469,99.535,99.453,23.4804]
[1645036942842,17.70267952,99.535,99.453,23.4804]
[1645036943442,19.12885421,99.535,99.453,23.4804]
[1645036943842,15.078,99.53,99.453,23.4804]
[1645036944043,1.42617469,99.533,99.454,2.30605016]
[1645036944244,17.70267952,99.534,99.454,2.30605016]
[1645036944449,1.42617469,99.537,99.453,23.4804]
[1645036944644,1.42617469,99.534,99.453,23.4804]
[1645036944845,1.42617469,99.533,99.453,23.4804]
[1645036945145,1.42617469,99.533,99.454,2.30605016]
[1645036945345,17.70348584,99.532,99.454,2.30605016]
[1645036945855,15.078,99.53,99.454,2.30605016]
[1645036946245,17.70348584,99.532,99.454,2.30605016]
[1645036946445,1.42617469,99.532,99.46,15.0761]
[1645036946844,1.42617469,99.538,99.461,2.30605016]
[1645036947047,1.42617469,99.539,99.461,2.30605016]
[1645036947245,1.42617469,99.54,99.461,2.30605016]
[1645036947447,1.42617469,99.541,99.461,2.30605016]
[1645036947645,1.42617469,99.538,99.461,2.30605016]
[1645036947845,17.70163004,99.539,99.461,2.30605016]
[1645036948046,1.42617469,99.538,99.46,15.0761]
[1645036948847,1.42617469,99.538,99.453,23.4804]
[1645036949047,1.42617469,99.532,99.453,23.4804]
[1645036949247,1.42617469,99.531,99.453,23.4804]
[1645036949450,1.42617469,99.531,99.454,2.30605016]
[1645036949651,1.42617469,99.533,99.454,2.30605016]
[1645036949851,1.42617469,99.534,99.454,2.30605016]
[1645036950051,1.42617469,99.531,99.454,2.30605016]
[1645036950450,1.42617469,99.53,99.454,2.30605016]
[1645036950650,1.42617469,99.531,99.454,2.30605016]
[1645036951051,1.42617469,99.533,99.454,2.30605016]
[1645036951250,1.42617469,99.534,99.454,2.30605016]
[1645036951951,1.42617469,99.533,99.454,2.30605016]
[1645036952351,1.42617469,99.532,99.454,2.30605016]
[1645036953155,1.42617469,99.531,99.454,2.30605016]
[1645036953755,1.42617469,99.532,99.454,2.30605016]
[1645036954857,1.42617469,99.532,99.46,15.0757]
[1645036955058,1.42617469,99.535,99.46,15.0757]
[1645036955256,1.42617469,99.535,99.461,2.30605016]
[1645036955858,15.0781,99.53,99.453,23.4804]
[1645036956057,16.50427469,99.53,99.453,23.4804]
[1645036956258,1.42617469,99.526,99.453,23.4804]
[1645036957759,1.42617469,99.529,99.453,23.4804]
[1645036958160,1.42617469,99.527,99.453,23.4804]
[1645036958360,1.42617469,99.529,99.453,23.4804]
[1645036958560,15.0781,99.53,99.453,23.4804]
[1645036958561,1.42617469,99.528,99.453,23.4804]
[1645036958964,1.42617469,99.527,99.453,23.4804]
[1645036959563,1.42617469,99.524,99.453,23.4804]
[1645036960265,1.42617469,99.523,99.453,23.4804]
[1645036960885,1.42617469,99.524,99.453,23.4804]
[1645036961285,1.42617469,99.526,99.453,23.4804]
[1645036961485,1.42617469,99.523,99.453,23.4804]
[1645036961686,1.42617469,99.524,99.453,23.4804]
[1645036961889,1.42617469,99.525,99.453,23.4804]
[1645036962086,1.42617469,99.523,99.453,23.4804]
[1645036962288,1.42617469,99.522,99.453,23.4804]
[1645036962988,1.42617469,99.52,99.453,23.4804]
[1645036963189,1.42617469,99.522,99.453,23.4804]
[1645036964392,1.42617469,99.521,99.453,23.4804]
[1645036964592,1.42617469,99.522,99.453,23.4804]
[1645036965298,1.42617469,99.52,99.453,23.4804]
[1645036965794,1.42617469,99.521,99.453,23.4804]
[1645036966595,1.42617469,99.524,99.453,23.4804]
[1645036966797,1.42617469,99.522,99.453,23.4804]
[1645036967696,1.42617469,99.524,99.453,23.4804]
[1645036967899,1.42617469,99.523,99.453,23.4804]
[1645036968396,1.42617469,99.522,99.453,23.4804]
[1645036968795,1.42617469,99.52,99.453,23.4804]
[1645036969800,1.42617469,99.521,99.453,23.4804]
[1645036970199,1.42617469,99.523,99.453,23.4804]
[1645036970600,1.42617469,99.521,99.453,23.4804]
[1645036971001,1.42617469,99.52,99.453,23.4804]
[1645036971400,1.42617469,99.521,99.453,23.4804]
[1645036971701,1.42617469,99.522,99.453,23.4804]
[1645036972401,1.42617469,99.521,99.453,23.4804]
[1645036972801,24.0646,99.529,99.453,23.4804]
[1645036972802,1.42617469,99.52,99.453,23.4804]
[1645036973804,1.42617469,99.523,99.453,23.4804]
[1645036974304,1.42617469,99.521,99.453,23.4804]
[1645036974504,1.42617469,99.522,99.453,23.4804]
[1645036974704,1.42617469,99.52,99.453,23.4804]
[1645036974906,1.42617469,99.519,99.453,23.4804]
[1645036976007,1.42617469,99.523,99.453,23.4804]
[1645036976207,1.42617469,99.52,99.453,23.4804]
[1645036977007,1.42617469,99.519,99.453,23.4804]
[1645036977207,1.42617469,99.518,99.453,23.4804]
[1645036977406,1.42617469,99.513,99.431,2.30605016]
[1645036977609,1.42617469,99.508,99.432,23.8561]
[1645036977808,1.42617469,99.501,99.432,23.8561]
[1645036978311,17.72225047,99.507,99.432,23.8561]
[1645036978508,100.9,99.512,99.432,23.8561]
[1645036978708,1.42891401,99.499,99.432,23.8561]
[1645036979108,1.42891401,99.496,99.432,23.8561]
[1645036979309,1.42891401,99.494,99.432,23.8561]
[1645036979535,17.74752062,99.498,99.432,23.8561]
[1645036979710,1.42891401,99.499,99.432,23.8561]
[1645036980113,17.74027166,99.498,99.432,23.8561]
[1645036981113,17.74027166,99.498,99.433,2.30605016]
[1645036981314,1.42891401,99.509,99.433,2.30605016]
[1645036981715,23.9616,99.517,99.449,1.6417231]
[1645036982114,23.9616,99.517,99.45,2.30605016]
[1645036982314,25.39051401,99.517,99.45,2.30605016]
[1645036982515,17.7320658,99.516,99.45,2.30605016]
[1645036983016,17.7320658,99.516,99.449,1.6417231]
[1645036983418,23.9616,99.517,99.449,16.6999231]
[1645036983615,23.9616,99.517,99.449,22.1299231]
[1645036983816,23.9616,99.517,99.45,24.5534]
[1645036984716,23.9616,99.517,99.451,2.30605016]
[1645036992551,17.73697223,99.516,99.451,2.30605016]
[1645036995153,17.73697223,99.516,99.45,24.5534]
[1645036995655,1.42891401,99.509,99.45,24.5534]
[1645036995859,1.42891401,99.506,99.45,24.5534]
[1645036996054,1.42891401,99.505,99.45,24.5534]
[1645036996256,1.42891401,99.504,99.45,24.5534]
[1645036996458,19.16588624,99.504,99.45,24.5534]
[1645036996654,1.42891401,99.503,99.45,24.5534]
[1645036996955,17.73697223,99.503,99.45,24.5534]
[1645036997358,17.73697223,99.504,99.45,24.5534]
[1645036998157,1.42891401,99.505,99.45,24.5534]
[1645036998560,19.16588624,99.504,99.45,24.5534]
[1645036998957,17.73697223,99.503,99.45,24.5534]
[1645036999761,17.73697223,99.504,99.45,24.5534]
[1645036999960,15.0825,99.5,99.449,1.6417231]
[1645037000165,100.9,99.499,99.449,1.6417231]
[1645037000361,1.42891401,99.49,99.449,1.6417231]
[1645037000763,1.42891401,99.487,99.449,1.6417231]
[1645037001164,17.73697223,99.486,99.449,1.6417231]
[1645037001862,17.52416314,99.489,99.421,2.30605016]
[1645037002061,40.29916314,99.489,99.421,2.30605016]
[1645037002261,38.87024913,99.489,99.421,2.30605016]
[1645037002670,22.775,99.489,99.421,2.30605016]
[1645037002862,1.42891401,99.493,99.421,2.30605016]
[1645037003065,14.53,99.5,99.421,2.30605016]
[1645037003265,1.42891401,99.504,99.421,2.30605016]
[1645037003463,1.42891401,99.509,99.43,15.0808]
[1645037003662,1.42891401,99.512,99.43,15.0808]
[1645037003864,1.42891401,99.51,99.431,22.8486]
[1645037004064,1.42891401,99.508,99.431,25.15465016]
[1645037004263,1.42891401,99.511,99.432,2.30605016]
[1645037004464,1.42891401,99.512,99.432,2.30605016]
[1645037004667,23.7185,99.533,99.432,2.30605016]
[1645037004668,1.42891401,99.513,99.441,100.9]
[1645037004864,1.42891401,99.52,99.441,100.9]
[1645037005064,1.42891401,99.52,99.442,2.30605016]
[1645037005765,1.42891401,99.52,99.444,100.9]
[1645037005964,1.42891401,99.52,99.444,106.71]
[1645037006164,1.42891401,99.52,99.45,15.0774]
[1645037006364,1.42891401,99.527,99.451,100.9]
[1645037006566,1.42891401,99.527,99.451,103.20605016]
[1645037006766,1.42891401,99.529,99.452,2.30605016]
[1645037007164,1.42891401,99.532,99.452,2.30605016]
[1645037007566,1.42891401,99.533,99.452,2.30605016]
[1645037008666,1.42891401,99.53,99.452,2.30605016]
[1645037008871,1.42891401,99.526,99.452,2.30605016]
[1645037009072,1.42891401,99.521,99.452,2.30605016]
[1645037009270,1.42891401,99.515,99.446,24.6324]
[1645037009467,1.42891401,99.513,99.424,2.30605016]
[1645037009667,1.42891401,99.503,99.424,2.30605016]
[1645037010068,1.42891401,99.506,99.424,2.30605016]
[1645037010268,1.42891401,99.504,99.424,2.30605016]
[1645037010670,1.42891401,99.503,99.424,2.30605016]
[1645037010971,1.42891401,99.503,99.43,15.0798]
[1645037011168,1.42891401,99.508,99.43,15.0798]
[1645037011369,1.42891401,99.508,99.431,2.30605016]
[1645037011769,24.9031,99.507,99.432,24.5471]
[1645037012170,24.9031,99.507,99.433,2.30605016]
[1645037015873,24.9031,99.507,99.44,15.0797]
[1645037016273,24.9031,99.507,99.441,2.30605016]
[1645037018276,1.42891401,99.517,99.45,15.0781]
[1645037018476,1.42891401,99.518,99.451,23.7458]
[1645037018677,1.42891401,99.518,99.451,26.05185016]
[1645037018876,1.42891401,99.518,99.451,23.7458]
[1645037019077,1.42891401,99.52,99.452,2.30605016]
[1645037019278,1.42891401,99.52,99.46,15.0763]
[1645037019478,1.42891401,99.526,99.46,15.0763]
[1645037019678,1.42891401,99.526,99.461,2.30605016]
[1645037019880,1.42891401,99.524,99.461,2.30605016]
[1645037020178,1.42891401,99.527,99.461,2.30605016]
[1645037020379,1.42891401,99.527,99.462,24.7653]
[1645037020797,1.42891401,99.525,99.463,2.30605016]
[1645037021198,1.42891401,99.526,99.463,2.30605016]
[1645037021898,1.42891401,99.525,99.463,2.30605016]
[1645037022096,1.42891401,99.524,99.463,2.30605016]
[1645037022698,22.9198,99.529,99.452,2.30605016]
[1645037022699,1.42891401,99.519,99.452,2.30605016]
[1645037022899,1.42891401,99.508,99.441,23.5454]
[1645037023298,1.42891401,99.506,99.441,23.5454]
[1645037023500,1.42891401,99.509,99.441,23.5454]
[1645037023703,1.42891401,99.508,99.441,23.5454]
[1645037024001,1.42891401,99.505,99.441,23.5454]
[1645037024200,1.42891401,99.504,99.441,23.5454]
[1645037024404,1.42891401,99.504,99.442,5.026]
[1645037025001,1.42891401,99.505,99.442,5.026]
[1645037025201,1.42891401,99.504,99.441,23.5454]
[1645037025602,1.42891401,99.504,99.442,5.026]
[1645037025803,1.42891401,99.504,99.441,23.5454]
[1645037026301,1.42891401,99.504,99.442,5.026]
[1645037026502,1.42891401,99.504,99.441,23.5454]
[1645037026903,1.42891401,99.505,99.441,23.5454]
[1645037027101,1.42891401,99.505,99.442,5.026]
[1645037027304,1.42891401,99.504,99.442,5.026]
[1645037027704,1.42891401,99.504,99.441,23.5454]
[1645037027903,1.42891401,99.506,99.441,23.5454]
[1645037028103,1.42891401,99.507,99.441,23.5454]
[1645037028303,1.42891401,99.507,99.441,38.3291]
[1645037028504,1.42891401,99.507,99.442,2.30605016]
[1645037028703,22.5639,99.509,99.443,5.026]
[1645037028903,22.5639,99.509,99.442,2.30605016]
[1645037029106,22.5639,99.509,99.444,2.30605016]
[1645037029507,1.42891401,99.514,99.45,15.0781]
[1645037029905,1.42891401,99.514,99.451,2.30605016]
[1645037030104,1.42891401,99.527,99.451,2.30605016]
[1645037030304,1.42891401,99.525,99.452,47.8397]
[1645037030706,1.42891401,99.524,99.453,2.30605016]
[1645037030905,1.42891401,99.522,99.453,2.30605016]
[1645037031305,1.42891401,99.521,99.452,47.8397]
[1645037031507,1.42891401,99.52,99.452,47.8397]
[1645037031710,1.42891401,99.518,99.452,47.8397]
[1645037031907,15.081,99.51,99.452,47.8397]
[1645037033206,15.081,99.51,99.452,24.4756]
[1645037034709,17.56667886,99.509,99.452,24.4756]
[1645037034908,17.56667886,99.509,99.43,15.0812]
[1645037034909,100.9,99.508,99.43,15.0812]
[1645037035108,22.8256,99.508,99.431,24.6794]
[1645037035308,15.0828,99.5,99.431,24.6794]
[1645037035507,15.0828,99.5,99.432,2.30605016]
[1645037036107,15.0828,99.5,99.431,24.6794]
[1645037036309,1.42891401,99.498,99.431,24.6794]
[1645037036508,15.0856,99.48,99.421,2.30605016]
[1645037036908,15.0856,99.48,99.418,23.5346]
[1645037041014,15.0856,99.48,99.419,23.0205]
[1645037041214,15.0856,99.48,99.419,25.32655016]
[1645037041416,15.0856,99.48,99.42,2.30605016]
[1645037043117,15.084,99.49,99.42,2.30605016]
[1645037044517,15.084,99.49,99.419,23.0205]
[1645037044718,18.99427128,99.489,99.419,23.0205]
[1645037044924,15.0857,99.48,99.419,23.0205]
[1645037046925,15.0857,99.48,99.406,2.30605016]
[1645037047121,125.885,99.479,99.395,2.30605016]
[1645037047323,100.9,99.459,99.395,2.30605016]
[1645037047522,100.9,99.459,99.369,24.0]
[1645037047523,108.42,99.459,99.376,2.30605016]
[1645037047723,1.42891401,99.456,99.376,2.30605016]
[1645037047921,102.32891401,99.457,99.376,2.30605016]
[1645037048126,1.42891401,99.457,99.369,24.0]
[1645037048324,15.0913,99.45,99.37,2.30605016]
[1645037048523,29.6213,99.45,99.37,2.30605016]
[1645037049723,15.092,99.44,99.37,2.30605016]
[1645037051526,100.9,99.439,99.369,24.0]
[1645037051727,15.0957,99.42,99.369,24.0]
[1645037053027,15.0957,99.42,99.355,2.30605016]
[1645037053927,14.53,99.41,99.327,2.30605016]
[1645037054125,100.9,99.399,99.327,2.30605016]
[1645037054327,100.9,99.389,99.277,46.1779]
[1645037055129,15.104,99.38,99.278,100.9]
[1645037055327,1.42891401,99.411,99.278,100.9]
[1645037055328,14.53,99.41,99.281,100.9]
[1645037055530,14.53,99.41,99.28,14.53]
[1645037055834,14.53,99.41,99.281,110.40938779]
[1645037056229,100.9,99.409,99.282,2.30605016]
[1645037056430,100.9,99.409,99.282,18.32483267]
[1645037056630,100.9,99.409,99.282,16.01878251]
[1645037056832,100.9,99.409,99.3,15.1017]
[1645037056833,15.0993,99.39,99.3,15.1017]
[1645037057531,100.9,99.389,99.3,15.1017]
[1645037057732,15.1017,99.38,99.3,15.1017]
[1645037059134,15.1017,99.38,99.301,100.9]
[1645037059333,15.0992,99.39,99.31,15.0992]
[1645037059534,14.53,99.41,99.31,15.0992]
[1645037059734,14.53,99.41,99.311,24.6748]
[1645037060835,15.0977,99.4,99.33,15.098]
[1645037061837,15.101,99.38,99.311,24.6748]
[1645037063237,100.9,99.404,99.32,15.0997]
[1645037063439,15.099,99.4,99.32,15.0997]
[1645037064838,15.099,99.4,99.321,22.77]
[1645037066536,15.0999,99.39,99.321,22.77]
[1645037066740,15.0999,99.39,99.33,15.0984]
[1645037066943,46.7906,99.419,99.33,15.0984]
[1645037067540,100.9,99.418,99.33,15.0984]
[1645037067744,15.0976,99.4,99.33,15.0984]
[1645037076462,15.0962,99.41,99.33,15.0984]
[1645037082890,100.9,99.409,99.33,15.0984]
[1645037083289,15.0978,99.4,99.33,15.0984]
[1645037091206,1.42891401,99.412,99.33,15.0984]
[1645037091404,1.42891401,99.414,99.33,15.0984]
[1645037091605,1.42891401,99.415,99.33,15.0984]
[1645037092006,1.42891401,99.418,99.33,15.0984]
[1645037092208,48.21951401,99.419,99.33,15.0984]
[1645037092807,46.7906,99.419,99.33,15.0984]
[1645037093010,1.42891401,99.421,99.35,15.0943]
[1645037093308,1.42891401,99.426,99.35,15.0943]
[1645037093508,1.42891401,99.428,99.351,22.7943]
[1645037093910,1.42891401,99.431,99.351,22.7943]
[1645037094110,5.72469958,99.466,99.352,24.5336]
[1645037094111,1.42891401,99.432,99.352,24.5336]
[1645037094510,1.42891401,99.433,99.352,24.5336]
[1645037094910,1.42891401,99.432,99.37,15.091]
[1645037095112,1.42891401,99.432,99.371,23.3433]
[1645037095938,1.42891401,99.435,99.371,23.3433]
[1645037096736,1.42891401,99.434,99.371,23.3433]
[1645037097737,1.42891401,99.435,99.371,23.3433]
[1645037098840,1.42891401,99.436,99.371,23.3433]
[1645037099037,1.42891401,99.435,99.371,23.3433]
[1645037099440,1.42891401,99.436,99.371,23.3433]
[1645037099639,1.42891401,99.437,99.371,23.3433]
[1645037100139,15.093,99.43,99.371,23.3433]
[1645037100539,1.42891401,99.425,99.371,23.3433]
[1645037100738,1.42891401,99.423,99.371,23.3433]
[1645037101738,1.42891401,99.423,99.352,24.5336]
[1645037101939,100.9,99.419,99.353,24.4165]
[1645037102541,100.9,99.419,99.31,50.3239]
[1645037102840,1.42891401,99.413,99.331,24.4165]
[1645037103241,1.42891401,99.408,99.331,24.4165]
[1645037103439,22.6659,99.418,99.331,24.4165]
[1645037103440,100.9,99.399,99.331,24.4165]
[1645037113254,15.0989,99.4,99.331,24.4165]
[1645037113447,1.42891401,99.41,99.34,15.097]
[1645037113649,1.42891401,99.418,99.34,15.097]
[1645037113850,1.42891401,99.427,99.341,103.20023274]
[1645037114050,1.42891401,99.429,99.341,103.20023274]
[1645037114248,1.42891401,99.433,99.342,2.30023274]
[1645037114448,1.42891401,99.433,99.36,15.0918]
[1645037114656,100.9,99.429,99.36,15.0918]
[1645037114848,1.42891401,99.428,99.36,15.0918]
[1645037115048,1.42891401,99.42,99.361,22.9968]
[1645037115449,17.62889177,99.419,99.361,22.9968]
[1645037116052,1.42891401,99.417,99.361,22.9968]
[1645037116253,1.42891401,99.418,99.361,22.9968]
[1645037116451,1.42891401,99.416,99.361,22.9968]
[1645037116653,19.05780578,99.417,99.361,22.9968]
[1645037116854,17.62889177,99.417,99.361,22.9968]
[1645037117054,17.62889177,99.416,99.361,22.9968]
[1645037117452,17.62889177,99.417,99.361,22.9968]
[1645037118257,17.62889177,99.418,99.361,22.9968]
[1645037119656,16.52431401,99.42,99.361,22.9968]
[1645037119657,17.62889177,99.419,99.361,22.9968]
[1645037120864,19.05780578,99.419,99.361,22.9968]
[1645037121060,17.62889177,99.419,99.361,22.9968]
[1645037121261,17.62889177,99.418,99.361,22.9968]
[1645037121664,19.05780578,99.419,99.361,22.9968]
[1645037121863,17.62889177,99.419,99.361,22.9968]
[1645037122090,17.62889177,99.418,99.361,22.9968]
[1645037122490,17.62889177,99.419,99.361,22.9968]
[1645037124887,1.42891401,99.425,99.361,22.9968]
[1645037125089,1.42891401,99.427,99.361,22.9968]
[1645037125285,17.64244303,99.424,99.361,22.9968]
[1645037125886,1.42891401,99.424,99.361,22.9968]
[1645037126088,1.42891401,99.423,99.361,22.9968]
[1645037126288,19.07135704,99.423,99.361,22.9968]
[1645037126686,17.64244303,99.422,99.361,22.9968]
[1645037127089,19.07135704,99.422,99.361,22.9968]
[1645037127287,15.0946,99.42,99.361,22.9968]
[1645037127486,1.42891401,99.419,99.361,22.9968]
[1645037127888,1.42891401,99.416,99.361,22.9968]
[1645037128288,119.97135704,99.415,99.361,22.9968]
[1645037128694,17.64244303,99.414,99.361,22.9968]
[1645037128889,15.0968,99.41,99.361,22.9968]
[1645037130301,15.0968,99.41,99.35,15.0957]
[1645037130500,1.42891401,99.407,99.34,15.0973]
[1645037130701,100.9,99.399,99.341,24.7501]
[1645037130901,102.32891401,99.399,99.341,24.7501]
[1645037131398,1.42891401,99.399,99.341,24.7501]
[1645037131799,1.42891401,99.398,99.341,24.7501]
[1645037132000,15.0978,99.4,99.341,24.7501]
[1645037133999,1.42891401,99.399,99.341,24.7501]
[1645037134812,15.0978,99.4,99.341,24.7501]
[1645037135004,16.52671401,99.4,99.341,24.7501]
[1645037135202,15.0978,99.4,99.341,24.7501]
[1645037135703,1.42891401,99.398,99.341,24.7501]
[1645037136503,15.0978,99.4,99.341,24.7501]
[1645037136703,16.52671401,99.4,99.341,24.7501]
[1645037137105,15.0978,99.4,99.341,24.7501]
[1645037137404,16.52671401,99.4,99.341,24.7501]
[1645037137804,15.0978,99.4,99.341,24.7501]
[1645037138606,1.42891401,99.405,99.341,24.7501]
[1645037138806,1.42891401,99.408,99.341,24.7501]
[1645037139206,1.42891401,99.409,99.341,24.7501]
[1645037139607,16.52501401,99.41,99.341,24.7501]
[1645037139809,1.42891401,99.409,99.341,24.7501]
[1645037140009,1.42891401,99.409,99.35,15.0958]
[1645037140212,16.52501401,99.41,99.35,15.0958]
[1645037142511,1.42891401,99.409,99.35,15.0958]
[1645037142713,16.52501401,99.41,99.35,15.0958]
[1645037142911,1.42891401,99.409,99.35,15.0958]
[1645037143712,16.52501401,99.41,99.35,15.0958]
[1645037143913,1.42891401,99.409,99.35,15.0958]
[1645037144514,16.52501401,99.41,99.35,15.0958]
[1645037144814,15.0961,99.41,99.35,15.0958]
[1645037145017,16.52501401,99.41,99.35,15.0958]
[1645037145318,15.0961,99.41,99.35,15.0958]
[1645037145915,15.0961,99.41,99.4,4.6366783]
[1645037148620,1.42891401,99.407,99.4,4.6366783]
[1645037149322,1.42891401,99.409,99.35,15.0958]
[1645037149524,1.42891401,99.409,99.4,4.6660562]
[1645037149722,16.52501401,99.41,99.4,4.6660562]
[1645037150527,15.0961,99.41,99.4,4.6660562]
[1645037151527,16.52501401,99.41,99.4,4.6660562]
[1645037151927,1.42891401,99.41,99.4,4.6660562]
[1645037152134,1.42891401,99.414,99.4,4.6660562]
[1645037152328,1.42891401,99.418,99.401,3.03219997]
[1645037152727,1.42891401,99.426,99.401,3.03219997]
[1645037152928,5.72599658,99.459,99.401,3.03219997]
[1645037152929,1.42891401,99.43,99.401,3.03219997]
[1645037153134,1.42891401,99.44,99.401,3.03219997]
[1645037153530,1.42891401,99.444,99.401,3.03219997]
[1645037153829,1.42891401,99.443,99.402,24.1589]
[1645037154029,1.42891401,99.444,99.402,24.1589]
[1645037154630,1.42891401,99.443,99.402,24.1589]
[1645037154831,1.42891401,99.455,99.402,24.1589]
[1645037155036,1.42891401,99.454,99.402,24.1589]
[1645037155231,19.06301498,99.454,99.402,24.1589]
[1645037155634,17.63410097,99.453,99.402,24.1589]
[1645037156947,17.63410097,99.454,99.402,24.1589]
[1645037157346,17.63410097,99.455,99.402,24.1589]
[1645037158149,17.63410097,99.458,99.402,24.1589]
[1645037158547,17.63410097,99.457,99.402,24.1589]
[1645037158948,19.06301498,99.456,99.402,24.1589]
[1645037159348,17.63410097,99.455,99.402,24.1589]
[1645037159750,19.06301498,99.458,99.402,24.1589]
[1645037159947,1.42891401,99.457,99.402,24.1589]
[1645037160147,1.42891401,99.456,99.402,24.1589]
[1645037160847,17.63410097,99.455,99.402,24.1589]
[1645037161147,17.63410097,99.454,99.402,24.1589]
[1645037161551,1.42891401,99.457,99.402,24.1589]
[1645037161748,1.42891401,99.469,99.402,29.4589]
[1645037161947,1.42891401,99.47,99.41,15.0865]